[Event "*** SCC Grand Prix: Titled Tuesday Blitz"]
[Site "Chess.com"]
[Date "2020.08.25"]
[Round "4"]
[White "ShahMatKanal"]
[Black "Matols"]
[Result "0-1"]
[WhiteElo "2481"]
[BlackElo "2275"]
[TimeControl "180+1"]
[EndTime "10:41:05 PDT"]
[Termination "Matols won on time"]

1. d4 {[%clk 0:03:00.9]} 1... Nf6 {[%clk 0:02:58.9]} 2. Nc3 {[%clk 0:03:00]}
2... d5 {[%clk 0:02:56.4]} 3. Bg5 {[%clk 0:03:00]} 3... e6 {[%clk 0:02:48.6]} 4.
Qd2 {[%clk 0:02:51]} 4... c5 {[%clk 0:02:37.3]} 5. e3 {[%clk 0:02:47.9]} 5...
Nc6 {[%clk 0:02:36.2]} 6. Nf3 {[%clk 0:02:40.5]} 6... cxd4 {[%clk 0:02:24.2]} 7.
exd4 {[%clk 0:02:35.3]} 7... Be7 {[%clk 0:02:24]} 8. Be2 {[%clk 0:02:03.6]} 8...
O-O {[%clk 0:02:20]} 9. O-O {[%clk 0:02:03.4]} 9... b6 {[%clk 0:02:17.2]} 10.
Rad1 {[%clk 0:01:52.9]} 10... Bb7 {[%clk 0:02:16.5]} 11. Rfe1 {[%clk 0:01:26.7]}
11... Rc8 {[%clk 0:02:15.1]} 12. Bd3 {[%clk 0:01:09.5]} 12... Nb4 {[%clk
0:02:05.1]} 13. Bf1 {[%clk 0:01:05.7]} 13... Ne4 {[%clk 0:01:47.1]} 14. Bxe7
{[%clk 0:00:16.5]} 14... Qxe7 {[%clk 0:01:40.8]} 15. Nxe4 {[%clk 0:00:10.6]}
15... dxe4 {[%clk 0:01:39.8]} 16. c3 {[%clk 0:00:04.2]} 16... exf3 {[%clk
0:01:38]} 17. cxb4 {[%clk 0:00:04.4]} 17... fxg2 {[%clk 0:01:35.6]} 18. Bd3
{[%clk 0:00:03.2]} 18... Qh4 {[%clk 0:01:31.8]} 19. Re3 {[%clk 0:00:01.8]} 19...
Rfd8 {[%clk 0:01:25.3]} 20. Bb1 {[%clk 0:00:01.6]} 20... Rc4 {[%clk 0:01:13.8]}
21. Rg3 {[%clk 0:00:01.4]} 21... Rcxd4 {[%clk 0:01:09.6]} 22. Rd3 {[%clk
0:00:01.7]} 22... Rxd3 {[%clk 0:01:06.4]} 23. Bxd3 {[%clk 0:00:02.6]} 23... Bd5
{[%clk 0:01:04]} 24. Qe2 {[%clk 0:00:02.5]} 24... Rc8 {[%clk 0:01:01.5]} 25. a3
{[%clk 0:00:02.3]} 25... h6 {[%clk 0:00:57.8]} 26. f3 {[%clk 0:00:02.7]} 26...
Qh3 {[%clk 0:00:54.5]} 27. Qxg2 {[%clk 0:00:02.3]} 27... Qxf3 {[%clk 0:00:53.1]}
28. Qxf3 {[%clk 0:00:02.6]} 28... Bxf3 {[%clk 0:00:53.2]} 29. Rd2 {[%clk
0:00:03.5]} 29... Bd5 {[%clk 0:00:52.3]} 30. Kf2 {[%clk 0:00:03.8]} 30... Kf8
{[%clk 0:00:51.7]} 31. Ba6 {[%clk 0:00:03.9]} 31... Rc7 {[%clk 0:00:50.8]} 32.
Bb5 {[%clk 0:00:04]} 32... Ke7 {[%clk 0:00:50.8]} 33. Ke3 {[%clk 0:00:04.4]}
33... f6 {[%clk 0:00:50.2]} 34. Be2 {[%clk 0:00:04.4]} 34... g5 {[%clk
0:00:49.4]} 35. Bh5 {[%clk 0:00:04.5]} 35... f5 {[%clk 0:00:49.1]} 36. Be2
{[%clk 0:00:03.9]} 36... Kf6 {[%clk 0:00:49.1]} 37. a4 {[%clk 0:00:03.9]} 37...
Ke5 {[%clk 0:00:43.9]} 38. a5 {[%clk 0:00:04.2]} 38... f4+ {[%clk 0:00:43.6]}
39. Kf2 {[%clk 0:00:04.3]} 39... Rc1 {[%clk 0:00:42.7]} 40. h3 {[%clk
0:00:03.7]} 40... Rh1 {[%clk 0:00:36.5]} 41. a6 {[%clk 0:00:04]} 41... Rxh3
{[%clk 0:00:34.9]} 42. Rc2 {[%clk 0:00:04.5]} 42... Rh2+ {[%clk 0:00:34]} 43.
Kg1 {[%clk 0:00:03.9]} 43... Rg2+ {[%clk 0:00:33.7]} 44. Kf1 {[%clk 0:00:03.9]}
44... f3 {[%clk 0:00:30.3]} 45. Rc7 {[%clk 0:00:02.6]} 45... Rxe2 {[%clk
0:00:29.2]} 46. Rxa7 {[%clk 0:00:01.8]} 46... Rxb2 {[%clk 0:00:29.2]} 0-1

[Event "*** SCC Grand Prix: Titled Tuesday Blitz"]
[Site "Chess.com"]
[Date "2020.08.25"]
[Round "4"]
[White "Duong57"]
[Black "Ginger_GM"]
[Result "0-1"]
[WhiteElo "2364"]
[BlackElo "2572"]
[TimeControl "180+1"]
[EndTime "10:41:06 PDT"]
[Termination "Ginger_GM won by resignation"]

1. d4 {[%clk 0:03:00.9]} 1... e6 {[%clk 0:02:59.7]} 2. c4 {[%clk 0:03:00.9]}
2... f5 {[%clk 0:02:56.1]} 3. Nc3 {[%clk 0:03:00.5]} 3... Nf6 {[%clk 0:02:55.5]}
4. Qc2 {[%clk 0:02:59.9]} 4... Bb4 {[%clk 0:02:54.9]} 5. e3 {[%clk 0:02:59]}
5... b6 {[%clk 0:02:52.5]} 6. Bd3 {[%clk 0:02:59]} 6... Bb7 {[%clk 0:02:52.3]}
7. f3 {[%clk 0:02:59.4]} 7... Nh5 {[%clk 0:02:39.2]} 8. Qf2 {[%clk 0:02:43.1]}
8... Bxc3+ {[%clk 0:02:35.4]} 9. bxc3 {[%clk 0:02:42.1]} 9... O-O {[%clk
0:02:34.8]} 10. Ne2 {[%clk 0:02:42.1]} 10... d6 {[%clk 0:02:30.8]} 11. O-O
{[%clk 0:02:41.9]} 11... Nd7 {[%clk 0:02:26.8]} 12. Ng3 {[%clk 0:02:37.2]} 12...
Nxg3 {[%clk 0:02:21.6]} 13. Qxg3 {[%clk 0:02:37]} 13... e5 {[%clk 0:02:21.6]}
14. d5 {[%clk 0:02:30.1]} 14... Qf6 {[%clk 0:02:12.5]} 15. Bc2 {[%clk
0:02:25.2]} 15... Ba6 {[%clk 0:02:06.7]} 16. Bb3 {[%clk 0:01:43.8]} 16... Nc5
{[%clk 0:01:53.3]} 17. Bd2 {[%clk 0:01:43.5]} 17... Nb7 {[%clk 0:01:44]} 18. e4
{[%clk 0:01:24.4]} 18... Qg6 {[%clk 0:01:23.1]} 19. exf5 {[%clk 0:01:03.1]}
19... Qxg3 {[%clk 0:01:14.5]} 20. hxg3 {[%clk 0:01:02.7]} 20... Rxf5 {[%clk
0:01:14.8]} 21. Rfe1 {[%clk 0:01:00.3]} 21... h5 {[%clk 0:01:05.7]} 22. Be3
{[%clk 0:00:31.4]} 22... Na5 {[%clk 0:01:02.9]} 23. c5 {[%clk 0:00:31.3]} 23...
bxc5 {[%clk 0:01:00.3]} 24. Bc2 {[%clk 0:00:30.1]} 24... Rff8 {[%clk 0:00:47.7]}
25. Bg6 {[%clk 0:00:29.8]} 25... Bc4 {[%clk 0:00:43.4]} 26. Red1 {[%clk
0:00:29.7]} 26... Rab8 {[%clk 0:00:39.6]} 27. Rd2 {[%clk 0:00:29.8]} 27... Bb5
{[%clk 0:00:35]} 28. Bxh5 {[%clk 0:00:28.5]} 28... Nc4 {[%clk 0:00:35]} 29. Re2
{[%clk 0:00:28.5]} 29... Be8 {[%clk 0:00:33.4]} 30. Bg4 {[%clk 0:00:26.5]} 30...
Bf7 {[%clk 0:00:33]} 31. Rd1 {[%clk 0:00:24.8]} 31... Rb6 {[%clk 0:00:28.6]} 32.
Bf2 {[%clk 0:00:22.2]} 32... Rfb8 {[%clk 0:00:26.4]} 33. Re4 {[%clk 0:00:22.3]}
33... Rb1 {[%clk 0:00:25.6]} 34. Rxb1 {[%clk 0:00:20.7]} 34... Rxb1+ {[%clk
0:00:26.5]} 35. Kh2 {[%clk 0:00:21.3]} 35... Bxd5 {[%clk 0:00:27]} 36. Re2
{[%clk 0:00:18.4]} 36... Rb2 {[%clk 0:00:27.2]} 37. Rxb2 {[%clk 0:00:18.2]}
37... Nxb2 {[%clk 0:00:28.1]} 38. a3 {[%clk 0:00:17.1]} 38... a5 {[%clk
0:00:27.1]} 39. Be3 {[%clk 0:00:16.6]} 39... Kf7 {[%clk 0:00:23.2]} 40. Bg5
{[%clk 0:00:16.6]} 40... Be6 {[%clk 0:00:20]} 41. Bh5+ {[%clk 0:00:16]} 41... g6
{[%clk 0:00:19.7]} 42. Bg4 {[%clk 0:00:16.7]} 42... Bxg4 {[%clk 0:00:19.8]} 43.
fxg4 {[%clk 0:00:17.6]} 43... Ke6 {[%clk 0:00:20.2]} 44. Bd8 {[%clk 0:00:17.7]}
44... Kd7 {[%clk 0:00:19.7]} 45. Bg5 {[%clk 0:00:18.6]} 45... Nc4 {[%clk
0:00:19.5]} 46. Bc1 {[%clk 0:00:18.7]} 46... d5 {[%clk 0:00:19.7]} 47. Kg1
{[%clk 0:00:19.2]} 47... d4 {[%clk 0:00:20]} 48. cxd4 {[%clk 0:00:19.4]} 48...
cxd4 {[%clk 0:00:20.1]} 49. Kf2 {[%clk 0:00:20.3]} 49... e4 {[%clk 0:00:20.5]}
50. Ke1 {[%clk 0:00:20.2]} 50... Ke6 {[%clk 0:00:20.7]} 51. g5 {[%clk
0:00:20.2]} 51... Kd5 {[%clk 0:00:20.4]} 52. g4 {[%clk 0:00:20.4]} 52... e3
{[%clk 0:00:20.6]} 53. Kd1 {[%clk 0:00:20.9]} 53... d3 {[%clk 0:00:18.3]} 0-1

[Event "*** SCC Grand Prix: Titled Tuesday Blitz"]
[Site "Chess.com"]
[Date "2020.08.25"]
[Round "4"]
[White "rasmussvane"]
[Black "Gabrielian_Artur"]
[Result "0-1"]
[WhiteElo "2856"]
[BlackElo "2724"]
[TimeControl "180+1"]
[EndTime "10:41:07 PDT"]
[Termination "Gabrielian_Artur won by resignation"]

1. Nf3 {[%clk 0:03:00.9]} 1... c5 {[%clk 0:02:59.1]} 2. c4 {[%clk 0:03:00.2]}
2... Nc6 {[%clk 0:02:58.6]} 3. Nc3 {[%clk 0:03:00.5]} 3... e5 {[%clk 0:02:58]}
4. e3 {[%clk 0:02:59.9]} 4... Nf6 {[%clk 0:02:57.7]} 5. d4 {[%clk 0:03:00.4]}
5... e4 {[%clk 0:02:56.5]} 6. Ne5 {[%clk 0:02:59.9]} 6... g6 {[%clk 0:02:54.7]}
7. Be2 {[%clk 0:02:58]} 7... Bg7 {[%clk 0:02:54.4]} 8. O-O {[%clk 0:02:28.1]}
8... O-O {[%clk 0:02:52.8]} 9. b3 {[%clk 0:02:27.3]} 9... Re8 {[%clk 0:02:40.4]}
10. Bb2 {[%clk 0:02:08.5]} 10... cxd4 {[%clk 0:02:23.4]} 11. exd4 {[%clk
0:01:55.5]} 11... d6 {[%clk 0:02:22.4]} 12. Nxc6 {[%clk 0:01:53.1]} 12... bxc6
{[%clk 0:02:23.3]} 13. d5 {[%clk 0:01:43]} 13... c5 {[%clk 0:02:22]} 14. Qd2
{[%clk 0:01:25.9]} 14... Bg4 {[%clk 0:02:09.3]} 15. Rae1 {[%clk 0:01:21.5]}
15... Qd7 {[%clk 0:02:01.7]} 16. h3 {[%clk 0:01:18.1]} 16... Bxe2 {[%clk
0:01:29.1]} 17. Rxe2 {[%clk 0:01:19]} 17... Re7 {[%clk 0:01:29]} 18. Rfe1 {[%clk
0:01:15.2]} 18... Rae8 {[%clk 0:01:29.1]} 19. Nd1 {[%clk 0:01:05.7]} 19... Nh5
{[%clk 0:01:16.9]} 20. Bxg7 {[%clk 0:01:05.1]} 20... Kxg7 {[%clk 0:01:09.8]} 21.
g4 {[%clk 0:01:00.1]} 21... Nf6 {[%clk 0:01:06]} 22. Qf4 {[%clk 0:00:52.8]}
22... Re5 {[%clk 0:01:00.9]} 23. Nc3 {[%clk 0:00:50.7]} 23... Qe7 {[%clk
0:00:54.5]} 24. Kg2 {[%clk 0:00:33.2]} 24... h6 {[%clk 0:00:54.3]} 25. Re3
{[%clk 0:00:29.5]} 25... a6 {[%clk 0:00:54.4]} 26. Kf1 {[%clk 0:00:26.9]} 26...
Kh7 {[%clk 0:00:50.2]} 27. Ke2 {[%clk 0:00:27]} 27... Kg7 {[%clk 0:00:45.4]} 28.
Kd1 {[%clk 0:00:27.4]} 28... Kh7 {[%clk 0:00:43.4]} 29. R1e2 {[%clk 0:00:27.7]}
29... Kg7 {[%clk 0:00:43.7]} 30. Kc2 {[%clk 0:00:28.2]} 30... Kh7 {[%clk
0:00:43.1]} 31. h4 {[%clk 0:00:25.8]} 31... Kg7 {[%clk 0:00:33.9]} 32. Qg3
{[%clk 0:00:25.2]} 32... Qd7 {[%clk 0:00:27.5]} 33. g5 {[%clk 0:00:25.3]} 33...
hxg5 {[%clk 0:00:27.3]} 34. hxg5 {[%clk 0:00:26.2]} 34... Nh5 {[%clk 0:00:20.4]}
35. Qh4 {[%clk 0:00:25.7]} 35... Qf5 {[%clk 0:00:19.4]} 36. Nxe4 {[%clk
0:00:19.6]} 36... Nf4 {[%clk 0:00:15.7]} 37. f3 {[%clk 0:00:19.6]} 37... Nxe2
{[%clk 0:00:14.7]} 38. Rxe2 {[%clk 0:00:19.5]} 38... Rh8 {[%clk 0:00:12.2]} 39.
Qg3 {[%clk 0:00:18]} 39... Rh3 {[%clk 0:00:12]} 40. Qg2 {[%clk 0:00:14]} 40...
Rxf3 {[%clk 0:00:11.9]} 41. Kd2 {[%clk 0:00:02.7]} 41... Rxe4 {[%clk 0:00:11.7]}
42. Rxe4 {[%clk 0:00:03.2]} 42... Qxe4 {[%clk 0:00:12]} 43. Qxf3 {[%clk
0:00:02.1]} 43... Qxf3 {[%clk 0:00:12.1]} 0-1

[Event "*** SCC Grand Prix: Titled Tuesday Blitz"]
[Site "Chess.com"]
[Date "2020.08.25"]
[Round "4"]
[White "XDPS"]
[Black "Zq1"]
[Result "1-0"]
[WhiteElo "2727"]
[BlackElo "2533"]
[TimeControl "180+1"]
[EndTime "10:41:09 PDT"]
[Termination "XDPS won by resignation"]

1. d4 {[%clk 0:02:59.7]} 1... Nf6 {[%clk 0:02:59.4]} 2. c4 {[%clk 0:02:59.8]}
2... a6 {[%clk 0:02:59.6]} 3. Nc3 {[%clk 0:02:45.3]} 3... c5 {[%clk 0:02:59.2]}
4. e3 {[%clk 0:02:43.2]} 4... e6 {[%clk 0:02:57.2]} 5. Nf3 {[%clk 0:02:43]} 5...
d5 {[%clk 0:02:57.2]} 6. a3 {[%clk 0:02:43.1]} 6... Nc6 {[%clk 0:02:56.7]} 7.
dxc5 {[%clk 0:02:41.4]} 7... Bxc5 {[%clk 0:02:55.8]} 8. b4 {[%clk 0:02:41.8]}
8... Ba7 {[%clk 0:02:51.7]} 9. Bb2 {[%clk 0:02:42.2]} 9... O-O {[%clk
0:02:47.5]} 10. Be2 {[%clk 0:02:40.1]} 10... d4 {[%clk 0:02:47]} 11. exd4 {[%clk
0:02:39.8]} 11... Nxd4 {[%clk 0:02:47.2]} 12. Nxd4 {[%clk 0:02:39.2]} 12... Bxd4
{[%clk 0:02:47.1]} 13. O-O {[%clk 0:02:39.6]} 13... e5 {[%clk 0:02:47.2]} 14.
Qc2 {[%clk 0:02:35.1]} 14... Be6 {[%clk 0:02:37.6]} 15. Rad1 {[%clk 0:02:32.5]}
15... Qc7 {[%clk 0:02:24.5]} 16. Na4 {[%clk 0:02:25.5]} 16... Bxb2 {[%clk
0:02:04.5]} 17. Qxb2 {[%clk 0:02:26.4]} 17... Nd7 {[%clk 0:01:52.1]} 18. c5
{[%clk 0:02:20.1]} 18... f6 {[%clk 0:01:45.8]} 19. Rd6 {[%clk 0:02:18.2]} 19...
Bf7 {[%clk 0:01:20.2]} 20. Rfd1 {[%clk 0:02:10.9]} 20... Be8 {[%clk 0:01:12.8]}
21. Bc4+ {[%clk 0:01:38.4]} 21... Kh8 {[%clk 0:01:11.7]} 22. Be6 {[%clk
0:01:39]} 22... Nb8 {[%clk 0:00:42.5]} 23. Nb6 {[%clk 0:01:37.8]} 23... Ra7
{[%clk 0:00:41]} 24. Rd8 {[%clk 0:01:09.9]} 24... Nc6 {[%clk 0:00:35.2]} 25.
R1d7 {[%clk 0:00:12.4]} 25... Qxd8 {[%clk 0:00:31.6]} 26. Rxd8 {[%clk
0:00:12.6]} 26... Nxd8 {[%clk 0:00:31.8]} 27. Bd5 {[%clk 0:00:12.7]} 27... Bc6
{[%clk 0:00:28.5]} 28. Qb3 {[%clk 0:00:11]} 28... a5 {[%clk 0:00:24.7]} 29. b5
{[%clk 0:00:09.7]} 29... a4 {[%clk 0:00:24.5]} 30. Qc4 {[%clk 0:00:09.4]} 30...
Bxd5 {[%clk 0:00:17]} 31. Qxd5 {[%clk 0:00:10.3]} 31... Ra5 {[%clk 0:00:16.7]}
32. Qd7 {[%clk 0:00:07.1]} 32... Kg8 {[%clk 0:00:11.9]} 33. h3 {[%clk
0:00:07.2]} 33... h5 {[%clk 0:00:11.2]} 34. Nc4 {[%clk 0:00:06.8]} 34... Ra8
{[%clk 0:00:09.9]} 35. Nd6 {[%clk 0:00:07]} 35... Nf7 {[%clk 0:00:08.5]} 36.
Nxb7 {[%clk 0:00:05.4]} 36... h4 {[%clk 0:00:08]} 37. c6 {[%clk 0:00:05.5]}
37... e4 {[%clk 0:00:07.7]} 38. c7 {[%clk 0:00:05.5]} 38... Ne5 {[%clk
0:00:07.5]} 39. Qd5+ {[%clk 0:00:04.9]} 39... Kh8 {[%clk 0:00:06.8]} 40. Nd8
{[%clk 0:00:04.7]} 40... e3 {[%clk 0:00:05.7]} 41. fxe3 {[%clk 0:00:03.5]} 41...
Ng6 {[%clk 0:00:02.9]} 42. Qxa8 {[%clk 0:00:03]} 1-0

[Event "*** SCC Grand Prix: Titled Tuesday Blitz"]
[Site "Chess.com"]
[Date "2020.08.25"]
[Round "4"]
[White "Azatic"]
[Black "MasterKroket"]
[Result "0-1"]
[WhiteElo "2580"]
[BlackElo "2428"]
[TimeControl "180+1"]
[EndTime "10:41:11 PDT"]
[Termination "MasterKroket won on time"]

1. e4 {[%clk 0:03:00.9]} 1... c5 {[%clk 0:03:00]} 2. Nf3 {[%clk 0:03:00.7]} 2...
e6 {[%clk 0:03:00.5]} 3. d4 {[%clk 0:03:00]} 3... cxd4 {[%clk 0:03:01.4]} 4.
Nxd4 {[%clk 0:03:00.9]} 4... Nc6 {[%clk 0:03:02.2]} 5. Nc3 {[%clk 0:03:00.6]}
5... Qc7 {[%clk 0:03:02.7]} 6. g3 {[%clk 0:02:56.1]} 6... a6 {[%clk 0:03:01.6]}
7. Bg2 {[%clk 0:02:54.1]} 7... b5 {[%clk 0:03:02]} 8. Nxc6 {[%clk 0:02:49.4]}
8... Qxc6 {[%clk 0:02:57.8]} 9. O-O {[%clk 0:02:45.8]} 9... Bb7 {[%clk
0:02:58.2]} 10. Re1 {[%clk 0:02:29.5]} 10... Be7 {[%clk 0:02:56.3]} 11. Nd5
{[%clk 0:02:17.8]} 11... Rc8 {[%clk 0:02:15.1]} 12. c3 {[%clk 0:01:46.2]} 12...
d6 {[%clk 0:02:05.1]} 13. Qg4 {[%clk 0:01:29.7]} 13... Kf8 {[%clk 0:01:49]} 14.
Nxe7 {[%clk 0:01:11.4]} 14... Nxe7 {[%clk 0:01:49.9]} 15. Bg5 {[%clk 0:01:02.3]}
15... Ng6 {[%clk 0:01:45.2]} 16. Rad1 {[%clk 0:00:54.3]} 16... h6 {[%clk
0:01:40.9]} 17. Bc1 {[%clk 0:00:48.9]} 17... Kg8 {[%clk 0:01:29.9]} 18. f4
{[%clk 0:00:39.3]} 18... Kh7 {[%clk 0:01:27.6]} 19. Re2 {[%clk 0:00:39.1]} 19...
Rhd8 {[%clk 0:01:26.8]} 20. Rf1 {[%clk 0:00:28.1]} 20... Qc4 {[%clk 0:01:15.7]}
21. Rfe1 {[%clk 0:00:14.7]} 21... Rf8 {[%clk 0:00:59.1]} 22. f5 {[%clk
0:00:13.2]} 22... Ne5 {[%clk 0:00:59]} 23. Qh5 {[%clk 0:00:12.7]} 23... exf5
{[%clk 0:00:54.1]} 24. Qxf5+ {[%clk 0:00:11.6]} 24... g6 {[%clk 0:00:47.2]} 25.
Qh3 {[%clk 0:00:11.2]} 25... h5 {[%clk 0:00:46.3]} 26. Bf4 {[%clk 0:00:08.1]}
26... Rce8 {[%clk 0:00:43]} 27. Bxe5 {[%clk 0:00:07.8]} 27... Rxe5 {[%clk
0:00:43.9]} 28. Rf2 {[%clk 0:00:08]} 28... Bxe4 {[%clk 0:00:41.4]} 29. Bxe4
{[%clk 0:00:06.1]} 29... Rxe4 {[%clk 0:00:41.6]} 30. Ref1 {[%clk 0:00:06.5]}
30... Qc5 {[%clk 0:00:40.2]} 31. Qd7 {[%clk 0:00:06.2]} 31... Re2 {[%clk
0:00:36.5]} 32. Kg2 {[%clk 0:00:06.5]} 32... Rxf2+ {[%clk 0:00:35.7]} 33. Rxf2
{[%clk 0:00:07.4]} 33... Kg8 {[%clk 0:00:35.7]} 34. Qe7 {[%clk 0:00:07.4]} 34...
Qd5+ {[%clk 0:00:35]} 35. Kg1 {[%clk 0:00:07.7]} 35... Qxa2 {[%clk 0:00:35.3]}
36. Qxd6 {[%clk 0:00:07.3]} 36... Qb1+ {[%clk 0:00:35.1]} 37. Kg2 {[%clk
0:00:07.5]} 37... Qe4+ {[%clk 0:00:35.6]} 38. Kg1 {[%clk 0:00:08]} 38... Re8
{[%clk 0:00:36]} 39. Qf6 {[%clk 0:00:07.7]} 39... Qe1+ {[%clk 0:00:34.8]} 40.
Kg2 {[%clk 0:00:08.1]} 40... Qe4+ {[%clk 0:00:35]} 41. Kg1 {[%clk 0:00:07.4]}
41... Qb7 {[%clk 0:00:33.6]} 42. Kf1 {[%clk 0:00:02.4]} 42... Re6 {[%clk
0:00:34.2]} 43. Qf3 {[%clk 0:00:02.1]} 43... Qd7 {[%clk 0:00:33.3]} 44. Kg2
{[%clk 0:00:02.4]} 44... a5 {[%clk 0:00:30.9]} 45. h4 {[%clk 0:00:02.9]} 45...
b4 {[%clk 0:00:31.1]} 46. Qa8+ {[%clk 0:00:02.8]} 46... Kg7 {[%clk 0:00:29.2]}
47. cxb4 {[%clk 0:00:02.8]} 47... axb4 {[%clk 0:00:29]} 48. Qf3 {[%clk
0:00:03.4]} 48... Qe7 {[%clk 0:00:27.7]} 49. Qb3 {[%clk 0:00:03.3]} 49... Re3
{[%clk 0:00:26.8]} 50. Qxb4 {[%clk 0:00:02.3]} 50... Qxb4 {[%clk 0:00:26.5]} 0-1

[Event "*** SCC Grand Prix: Titled Tuesday Blitz"]
[Site "Chess.com"]
[Date "2020.08.25"]
[Round "4"]
[White "KarpovVadim"]
[Black "felipelobo"]
[Result "1-0"]
[WhiteElo "2314"]
[BlackElo "2126"]
[TimeControl "180+1"]
[EndTime "10:41:11 PDT"]
[Termination "KarpovVadim won by resignation"]

1. d4 {[%clk 0:02:41.2]} 1... Nf6 {[%clk 0:02:58.3]} 2. c4 {[%clk 0:02:41.5]}
2... c5 {[%clk 0:02:57.4]} 3. d5 {[%clk 0:02:40.7]} 3... b5 {[%clk 0:02:57.4]}
4. cxb5 {[%clk 0:02:39.9]} 4... a6 {[%clk 0:02:57.9]} 5. bxa6 {[%clk 0:02:39]}
5... d6 {[%clk 0:02:57.5]} 6. Nc3 {[%clk 0:02:35.5]} 6... Bxa6 {[%clk
0:02:57.1]} 7. Nf3 {[%clk 0:02:35.4]} 7... g6 {[%clk 0:02:56.2]} 8. e4 {[%clk
0:02:33.2]} 8... Bxf1 {[%clk 0:02:54.3]} 9. Kxf1 {[%clk 0:02:33.5]} 9... Bg7
{[%clk 0:02:54.5]} 10. g3 {[%clk 0:02:33.8]} 10... O-O {[%clk 0:02:54.9]} 11.
Kg2 {[%clk 0:02:34]} 11... Ng4 {[%clk 0:02:33.1]} 12. Re1 {[%clk 0:02:33.5]}
12... Nd7 {[%clk 0:02:31.9]} 13. a4 {[%clk 0:02:32.3]} 13... Ra5 {[%clk
0:02:28.4]} 14. Nb5 {[%clk 0:02:30.4]} 14... Qa8 {[%clk 0:02:18.4]} 15. Bd2
{[%clk 0:02:27.2]} 15... Ra6 {[%clk 0:02:15]} 16. Nc7 {[%clk 0:02:25.9]} 16...
Qb7 {[%clk 0:02:13.5]} 17. Nxa6 {[%clk 0:02:25.2]} 17... Qxa6 {[%clk 0:02:14.4]}
18. Bc3 {[%clk 0:02:25.3]} 18... Nge5 {[%clk 0:02:13.3]} 19. Nxe5 {[%clk
0:02:24]} 19... Nxe5 {[%clk 0:02:14.2]} 20. Qe2 {[%clk 0:02:19.8]} 20... c4
{[%clk 0:02:08.2]} 21. Bxe5 {[%clk 0:02:17.1]} 21... Bxe5 {[%clk 0:02:07]} 22.
Rec1 {[%clk 0:02:18]} 22... Rc8 {[%clk 0:02:05.2]} 23. Rc2 {[%clk 0:02:11.7]}
23... h5 {[%clk 0:01:51.3]} 24. a5 {[%clk 0:02:09.6]} 24... Rc5 {[%clk 0:01:48]}
25. Ra4 {[%clk 0:02:06.1]} 25... Rxa5 {[%clk 0:01:44.7]} 26. Rxa5 {[%clk
0:02:03.5]} 26... Qxa5 {[%clk 0:01:45.6]} 27. Qxc4 {[%clk 0:02:01.5]} 27... h4
{[%clk 0:01:43.6]} 28. gxh4 {[%clk 0:01:57.5]} 28... Qe1 {[%clk 0:01:37.1]} 29.
Qe2 {[%clk 0:01:49.5]} 29... Qb1 {[%clk 0:01:24.9]} 30. h5 {[%clk 0:01:48.6]}
30... Kg7 {[%clk 0:01:20.3]} 31. hxg6 {[%clk 0:01:47.1]} 31... fxg6 {[%clk
0:01:20.9]} 32. Rc8 {[%clk 0:01:44.1]} 32... Qc1 {[%clk 0:01:17.2]} 33. Qg4
{[%clk 0:01:39.8]} 33... Qxb2 {[%clk 0:01:10.2]} 34. Qe6 {[%clk 0:01:33]} 34...
Bf6 {[%clk 0:01:01.9]} 35. Re8 {[%clk 0:01:15.7]} 35... Qd2 {[%clk 0:00:57.8]}
36. Rxe7+ {[%clk 0:01:13.2]} 36... Bxe7 {[%clk 0:00:57.8]} 37. Qxe7+ {[%clk
0:01:14.1]} 37... Kh6 {[%clk 0:00:58.6]} 38. Qxd6 {[%clk 0:01:11.9]} 38... Qg5+
{[%clk 0:00:52.8]} 39. Qg3 {[%clk 0:01:11]} 39... Qf6 {[%clk 0:00:48.2]} 40. e5
{[%clk 0:01:07.5]} 40... Qa6 {[%clk 0:00:45.2]} 41. Qe3+ {[%clk 0:01:05.8]}
41... Kg7 {[%clk 0:00:44]} 42. e6 {[%clk 0:01:05.4]} 42... Qd6 {[%clk
0:00:41.4]} 43. Qe4 {[%clk 0:01:00.8]} 43... Qe7 {[%clk 0:00:33.3]} 44. d6
{[%clk 0:00:57.5]} 44... Qg5+ {[%clk 0:00:29.5]} 45. Kf3 {[%clk 0:00:50.9]}
45... Qh5+ {[%clk 0:00:27.2]} 46. Ke3 {[%clk 0:00:50.1]} 46... Qh3+ {[%clk
0:00:25]} 47. Kd4 {[%clk 0:00:47.8]} 47... Qa3 {[%clk 0:00:22.1]} 48. Qe5+
{[%clk 0:00:44.6]} 48... Kh6 {[%clk 0:00:20.4]} 49. Qc5 {[%clk 0:00:40.1]} 49...
Qb2+ {[%clk 0:00:18.6]} 50. Kd5 {[%clk 0:00:38.8]} 50... Qd2+ {[%clk 0:00:13.2]}
51. Kc6 {[%clk 0:00:37.1]} 51... Qf4 {[%clk 0:00:08.4]} 52. Qe3 {[%clk
0:00:35.1]} 52... Qxe3 {[%clk 0:00:07.3]} 53. fxe3 {[%clk 0:00:33.9]} 1-0